[Event "Titled Tuesday Blitz April 19 Early 2022"]
[White "Belozerov, Andrei"]
[Black "Tanenbaum, Zachary"]
[WhiteFideId "4120213"]
[BlackFideId "2060850"]
[WhiteElo "2587"]
[BlackElo "2714"]
[Result "1-0"]
[Round "11"]
[TimeControl "180+1"]
[Date "2022.04.19"]
[WhiteClock "0:00:13"]
[BlackClock "0:00:05"]

1. e4 {[%clk 0:03:00]}  e5 {[%clk 0:02:59]} 2. Nf3 {[%clk 0:03:00]}  Nc6 {[%clk 0:03:00]} 3. Bb5 {[%clk 0:03:00]}  a6 {[%clk 0:03:00]} 4. Ba4 {[%clk 0:03:01]}  d6 {[%clk 0:03:01]} 5. c3 {[%clk 0:03:00]}  Nf6 {[%clk 0:03:01]} 6. d4 {[%clk 0:03:00]}  b5 {[%clk 0:03:01]} 7. Bb3 {[%clk 0:02:59]}  Be7 {[%clk 0:02:59]} 8. O-O {[%clk 0:02:59]}  Bg4 {[%clk 0:02:59]} 9. Be3 {[%clk 0:02:54]}  O-O {[%clk 0:02:57]} 10. Nbd2 {[%clk 0:02:54]}  Re8 {[%clk 0:02:55]} 11. h3 {[%clk 0:02:53]}  Bh5 {[%clk 0:02:55]} 12. Re1 {[%clk 0:02:51]}  Bf8 {[%clk 0:02:54]} 13. Qb1 {[%clk 0:02:44]}  Bg6 {[%clk 0:02:47]} 14. Nh4 {[%clk 0:02:40]}  exd4 {[%clk 0:02:38]} 15. cxd4 {[%clk 0:02:32]}  Bxe4 {[%clk 0:01:48]} 16. Nxe4 {[%clk 0:02:31]}  Rxe4 {[%clk 0:01:49]} 17. Nf5 {[%clk 0:02:07]}  g6 {[%clk 0:01:22]} 18. Ng3 {[%clk 0:02:01]}  Re8 {[%clk 0:01:20]} 19. Qc2 {[%clk 0:01:59]}  Qd7 {[%clk 0:01:14]} 20. Rac1 {[%clk 0:01:58]}  Na5 {[%clk 0:01:09]} 21. Qxc7 {[%clk 0:01:23]}  Qxc7 {[%clk 0:01:10]} 22. Rxc7 {[%clk 0:01:24]}  Nxb3 {[%clk 0:01:11]} 23. axb3 {[%clk 0:01:24]}  Nd5 {[%clk 0:01:11]} 24. Rcc1 {[%clk 0:01:17]}  Rec8 {[%clk 0:00:53]} 25. Ne2 {[%clk 0:01:15]}  Nb4 {[%clk 0:00:51]} 26. Red1 {[%clk 0:01:03]}  Bg7 {[%clk 0:00:36]} 27. Nc3 {[%clk 0:01:02]}  f5 {[%clk 0:00:29]} 28. g4 {[%clk 0:00:58]}  Kf7 {[%clk 0:00:28]} 29. gxf5 {[%clk 0:00:50]}  gxf5 {[%clk 0:00:29]} 30. Bf4 {[%clk 0:00:50]}  Rd8 {[%clk 0:00:21]} 31. Ne2 {[%clk 0:00:42]}  Rac8 {[%clk 0:00:20]} 32. Rxc8 {[%clk 0:00:37]}  Rxc8 {[%clk 0:00:20]} 33. Bxd6 {[%clk 0:00:38]}  Nd5 {[%clk 0:00:21]} 34. Bc5 {[%clk 0:00:37]}  Bf8 {[%clk 0:00:19]} 35. Rc1 {[%clk 0:00:29]}  Bh6 {[%clk 0:00:18]} 36. Ra1 {[%clk 0:00:28]}  Rc6 {[%clk 0:00:18]} 37. Nc3 {[%clk 0:00:28]}  Nf4 {[%clk 0:00:15]} 38. b4 {[%clk 0:00:26]}  Nxh3+ {[%clk 0:00:15]} 39. Kh2 {[%clk 0:00:25]}  Nxf2 {[%clk 0:00:14]} 40. d5 {[%clk 0:00:25]}  Ng4+ {[%clk 0:00:14]} 41. Kg3 {[%clk 0:00:24]}  Rg6 {[%clk 0:00:13]} 42. Kf3 {[%clk 0:00:23]}  Ne5+ {[%clk 0:00:14]} 43. Ke2 {[%clk 0:00:22]}  Rg2+ {[%clk 0:00:13]} 44. Kf1 {[%clk 0:00:22]}  Rxb2 {[%clk 0:00:12]} 45. Rxa6 {[%clk 0:00:21]}  Bd2 {[%clk 0:00:12]} 46. Nxb5 {[%clk 0:00:20]}  Bxb4 {[%clk 0:00:09]} 47. Nd6+ {[%clk 0:00:21]}  Kg7 {[%clk 0:00:09]} 48. Nxf5+ {[%clk 0:00:21]}  Kf7 {[%clk 0:00:09]} 49. Nh6+ {[%clk 0:00:19]}  Kg7 {[%clk 0:00:06]} 50. Bd4 {[%clk 0:00:19]}  Rb1+ {[%clk 0:00:04]} 51. Ke2 {[%clk 0:00:20]}  Re1+ {[%clk 0:00:02]} 52. Kf2 {[%clk 0:00:20]}  Re4 {[%clk 0:00:02]} 53. Nf5+ {[%clk 0:00:19]}  Kg8 {[%clk 0:00:02]} 54. Re6 {[%clk 0:00:18]}  Rf4+ {[%clk 0:00:02]} 55. Ke3 {[%clk 0:00:17]}  Rxf5 {[%clk 0:00:03]} 56. Ke4 {[%clk 0:00:17]}  Rh5 {[%clk 0:00:03]} 57. Bxe5 {[%clk 0:00:17]}  Rh4+ {[%clk 0:00:03]} 58. Kf5 {[%clk 0:00:17]}  Kf7 {[%clk 0:00:04]} 59. Rf6+ {[%clk 0:00:16]}  Ke7 {[%clk 0:00:05]} 60. Rb6 {[%clk 0:00:15]}  Rh5+ {[%clk 0:00:05]} 61. Ke4 {[%clk 0:00:15]}  Rh4+ {[%clk 0:00:05]} 62. Kd3 {[%clk 0:00:15]}  Bc5 {[%clk 0:00:06]} 63. Rb7+ {[%clk 0:00:15]}  Ke8 {[%clk 0:00:06]} 64. d6 {[%clk 0:00:14]}  Rh3+ {[%clk 0:00:06]} 65. Kc4 {[%clk 0:00:13]}  Bxd6 {[%clk 0:00:06]} 66. Bxd6 {[%clk 0:00:14]}  Re3 {[%clk 0:00:06]} 67. Kd5 {[%clk 0:00:14]}  Re1 {[%clk 0:00:06]} 68. Be5 {[%clk 0:00:13]}  Kf8 {[%clk 0:00:04]} 69. Ke6 {[%clk 0:00:13]}  Rxe5+ {[%clk 0:00:02]} 70. Kxe5 {[%clk 0:00:13]}  Kg8 {[%clk 0:00:03]} 71. Kf6 {[%clk 0:00:13]}  h5 {[%clk 0:00:03]} 72. Rg7+ {[%clk 0:00:13]}  Kh8 {[%clk 0:00:04]} 73. Kg6 {[%clk 0:00:13]}  h4 {[%clk 0:00:04]} 74. Ra7 {[%clk 0:00:12]}  h3 {[%clk 0:00:05]} 75. Ra8# {[%clk 0:00:13]} 1-0


[Site "https://www.chess.com"]

[Event "Titled Tuesday Blitz April 19 Early 2022"]
[White "Bortnyk, Olexandr"]
[Black "Svane, Rasmus"]
[WhiteFideId "14120828"]
[BlackFideId "4657101"]
[WhiteElo "2723"]
[BlackElo "2645"]
[Result "0-1"]
[Round "11"]
[TimeControl "180+1"]
[Date "2022.04.19"]
[WhiteClock "0:00:06"]
[BlackClock "0:00:05"]

1. d4 {[%clk 0:03:00]}  Nf6 {[%clk 0:02:59]} 2. Nc3 {[%clk 0:03:01]}  d5 {[%clk 0:02:58]} 3. Bf4 {[%clk 0:03:01]}  c5 {[%clk 0:02:57]} 4. e4 {[%clk 0:03:01]}  dxe4 {[%clk 0:02:53]} 5. d5 {[%clk 0:03:00]}  g6 {[%clk 0:02:48]} 6. Nge2 {[%clk 0:02:59]}  Bg7 {[%clk 0:02:48]} 7. Ng3 {[%clk 0:03:00]}  O-O {[%clk 0:02:42]} 8. Qd2 {[%clk 0:03:00]}  Qa5 {[%clk 0:02:32]} 9. Bc4 {[%clk 0:02:42]}  Rd8 {[%clk 0:02:06]} 10. O-O {[%clk 0:02:40]}  Qb4 {[%clk 0:01:41]} 11. Qe2 {[%clk 0:02:30]}  Bg4 {[%clk 0:01:31]} 12. f3 {[%clk 0:02:30]}  exf3 {[%clk 0:01:31]} 13. gxf3 {[%clk 0:02:29]}  Bh3 {[%clk 0:01:32]} 14. Rfe1 {[%clk 0:01:53]}  Nbd7 {[%clk 0:01:31]} 15. Bc7 {[%clk 0:01:33]}  Nb6 {[%clk 0:01:16]} 16. Bxd8 {[%clk 0:01:09]}  Rxd8 {[%clk 0:01:17]} 17. Bd3 {[%clk 0:01:02]}  Qxb2 {[%clk 0:01:15]} 18. Qxe7 {[%clk 0:00:57]}  Re8 {[%clk 0:00:53]} 19. Qxc5 {[%clk 0:00:53]}  Rc8 {[%clk 0:00:53]} 20. Rab1 {[%clk 0:00:53]}  Rxc5 {[%clk 0:00:44]} 21. Rxb2 {[%clk 0:00:52]}  Rxc3 {[%clk 0:00:44]} 22. d6 {[%clk 0:00:52]}  Bf8 {[%clk 0:00:41]} 23. Ne2 {[%clk 0:00:47]}  Rc8 {[%clk 0:00:35]} 24. a4 {[%clk 0:00:31]}  Bxd6 {[%clk 0:00:30]} 25. a5 {[%clk 0:00:31]}  Bc5+ {[%clk 0:00:30]} 26. Kh1 {[%clk 0:00:31]}  Nbd5 {[%clk 0:00:24]} 27. Rxb7 {[%clk 0:00:32]}  Nh5 {[%clk 0:00:21]} 28. Bc4 {[%clk 0:00:29]}  Ne3 {[%clk 0:00:18]} 29. Bxf7+ {[%clk 0:00:28]}  Kh8 {[%clk 0:00:17]} 30. Rg1 {[%clk 0:00:28]}  Rf8 {[%clk 0:00:11]} 31. Rg5 {[%clk 0:00:23]}  Bf5 {[%clk 0:00:04]} 32. c3 {[%clk 0:00:19]}  Nd1 {[%clk 0:00:03]} 33. Nd4 {[%clk 0:00:18]}  Nf2+ {[%clk 0:00:03]} 34. Kg2 {[%clk 0:00:18]}  Nd1 {[%clk 0:00:04]} 35. Nxf5 {[%clk 0:00:18]}  Nf4+ {[%clk 0:00:04]} 36. Kg3 {[%clk 0:00:16]}  Ne2+ {[%clk 0:00:04]} 37. Kh4 {[%clk 0:00:14]}  gxf5 {[%clk 0:00:04]} 38. Rxf5 {[%clk 0:00:14]}  Bf2+ {[%clk 0:00:05]} 39. Kh5 {[%clk 0:00:14]}  Ne3 {[%clk 0:00:05]} 40. Rf6 {[%clk 0:00:13]}  Kg7 {[%clk 0:00:06]} 41. Kg5 {[%clk 0:00:06]}  Bh4+ {[%clk 0:00:05]} 42. Kxh4 {[%clk 0:00:07]}  Kxf6 {[%clk 0:00:06]} 43. Bh5 {[%clk 0:00:05]}  Nf5+ {[%clk 0:00:07]} 44. Kh3 {[%clk 0:00:05]}  Nf4+ {[%clk 0:00:06]} 45. Kg4 {[%clk 0:00:06]}  Nxh5 {[%clk 0:00:07]} 46. Kxh5 {[%clk 0:00:07]}  Ng7+ {[%clk 0:00:06]} 47. Kg4 {[%clk 0:00:06]}  a6 {[%clk 0:00:06]} 48. Rb6+ {[%clk 0:00:07]}  Ne6 {[%clk 0:00:06]} 49. Rxa6 {[%clk 0:00:07]}  Rc8 {[%clk 0:00:07]} 50. f4 {[%clk 0:00:07]}  Rc4 {[%clk 0:00:07]} 51. Kf3 {[%clk 0:00:07]}  Kf5 {[%clk 0:00:08]} 52. Ke3 {[%clk 0:00:07]}  Rxc3+ {[%clk 0:00:08]} 53. Kd2 {[%clk 0:00:08]}  Rh3 {[%clk 0:00:08]} 54. Ra7 {[%clk 0:00:08]}  Rxh2+ {[%clk 0:00:09]} 55. Kc3 {[%clk 0:00:08]}  h5 {[%clk 0:00:06]} 56. Rf7+ {[%clk 0:00:08]}  Kg6 {[%clk 0:00:06]} 57. Rd7 {[%clk 0:00:08]}  Nxf4 {[%clk 0:00:06]} 58. a6 {[%clk 0:00:08]}  Ra2 {[%clk 0:00:06]} 59. a7 {[%clk 0:00:08]}  h4 {[%clk 0:00:06]} 60. Kb3 {[%clk 0:00:08]}  Ra1 {[%clk 0:00:06]} 61. Rd4 {[%clk 0:00:07]}  Rxa7 {[%clk 0:00:05]} 62. Rxf4 {[%clk 0:00:07]}  Kg5 {[%clk 0:00:05]} 63. Rf1 {[%clk 0:00:06]}  Rc7 {[%clk 0:00:05]} 64. Rg1+ {[%clk 0:00:04]}  Kf4 {[%clk 0:00:05]} 65. Rh1 {[%clk 0:00:03]}  Kg3 {[%clk 0:00:05]} 66. Rg1+ {[%clk 0:00:04]}  Kf3 {[%clk 0:00:05]} 67. Rh1 {[%clk 0:00:04]}  Rh7 {[%clk 0:00:04]} 68. Kc3 {[%clk 0:00:04]}  h3 {[%clk 0:00:05]} 69. Kd4 {[%clk 0:00:05]}  h2 {[%clk 0:00:05]} 70. Ra1 {[%clk 0:00:06]}  h1=Q {[%clk 0:00:05]} 71. Rxh1 {[%clk 0:00:06]}  Rxh1 {[%clk 0:00:05]} 0-1


[Site "https://www.chess.com"]

[Event "Titled Tuesday Blitz April 19 Early 2022"]
[White "Buscar, Michael"]
[Black "Ezat, Mohamed"]
[WhiteFideId "2603616"]
[BlackFideId "10600906"]
[WhiteElo "2010"]
[BlackElo "2386"]
[Result "1/2-1/2"]
[Round "11"]
[TimeControl "180+1"]
[Date "2022.04.19"]
[WhiteClock "0:01:13"]
[BlackClock "0:00:13"]

1. Nf3 {[%clk 0:03:00]}  d5 {[%clk 0:02:53]} 2. g3 {[%clk 0:02:59]}  Nc6 {[%clk 0:02:45]} 3. Bg2 {[%clk 0:02:59]}  e5 {[%clk 0:02:45]} 4. d3 {[%clk 0:02:56]}  Nf6 {[%clk 0:02:38]} 5. O-O {[%clk 0:02:56]}  h6 {[%clk 0:02:36]} 6. Nbd2 {[%clk 0:02:53]}  Be7 {[%clk 0:02:35]} 7. e4 {[%clk 0:02:53]}  O-O {[%clk 0:02:34]} 8. c3 {[%clk 0:02:52]}  a5 {[%clk 0:02:30]} 9. a4 {[%clk 0:02:49]}  b6 {[%clk 0:02:28]} 10. Re1 {[%clk 0:02:48]}  dxe4 {[%clk 0:02:24]} 11. dxe4 {[%clk 0:02:41]}  Ba6 {[%clk 0:02:23]} 12. Bf1 {[%clk 0:02:33]}  Bxf1 {[%clk 0:02:22]} 13. Kxf1 {[%clk 0:02:32]}  Qd3+ {[%clk 0:02:22]} 14. Qe2 {[%clk 0:02:30]}  Rfd8 {[%clk 0:02:20]} 15. Nc4 {[%clk 0:02:05]}  Qd7 {[%clk 0:02:01]} 16. Ncxe5 {[%clk 0:01:58]}  Qh3+ {[%clk 0:01:57]} 17. Kg1 {[%clk 0:01:58]}  Nxe5 {[%clk 0:01:57]} 18. Nxe5 {[%clk 0:01:59]}  Bd6 {[%clk 0:01:55]} 19. Nc6 {[%clk 0:01:32]}  Ng4 {[%clk 0:01:53]} 20. f3 {[%clk 0:01:29]}  Bc5+ {[%clk 0:01:53]} 21. Nd4 {[%clk 0:01:27]}  Rxd4 {[%clk 0:01:51]} 22. cxd4 {[%clk 0:01:17]}  Bxd4+ {[%clk 0:01:49]} 23. Kh1 {[%clk 0:01:16]}  Nf2+ {[%clk 0:01:39]} 24. Kg1 {[%clk 0:01:16]}  Ng4+ {[%clk 0:00:23]} 25. Kh1 {[%clk 0:01:15]}  Nf2+ {[%clk 0:00:21]} 26. Kg1 {[%clk 0:01:15]}  Nd1+ {[%clk 0:00:14]} 27. Kh1 {[%clk 0:01:13]}  Nf2+ {[%clk 0:00:13]} 1/2-1/2


[Site "https://www.chess.com"]

[Event "Titled Tuesday Blitz April 19 Early 2022"]
[White "Chernobay, Artem"]
[Black "Jegorovas, Aleksandras"]
[WhiteFideId "4167406"]
[BlackFideId "12801950"]
[WhiteElo "2473"]
[BlackElo "2247"]
[Result "1-0"]
[Round "11"]
[TimeControl "180+1"]
[Date "2022.04.19"]
[WhiteClock "0:00:56"]
[BlackClock "0:00:37"]

1. e4 {[%clk 0:03:00]}  e6 {[%clk 0:02:57]} 2. d4 {[%clk 0:03:00]}  d5 {[%clk 0:02:56]} 3. Nc3 {[%clk 0:03:01]}  Bb4 {[%clk 0:02:55]} 4. Ne2 {[%clk 0:03:00]}  Nc6 {[%clk 0:02:54]} 5. a3 {[%clk 0:02:55]}  Ba5 {[%clk 0:02:52]} 6. e5 {[%clk 0:02:51]}  Nge7 {[%clk 0:02:49]} 7. Nf4 {[%clk 0:02:43]}  Nf5 {[%clk 0:02:40]} 8. Bb5 {[%clk 0:02:29]}  Bd7 {[%clk 0:02:29]} 9. Bxc6 {[%clk 0:02:18]}  Bxc6 {[%clk 0:02:28]} 10. O-O {[%clk 0:02:17]}  Bb6 {[%clk 0:02:22]} 11. Nce2 {[%clk 0:02:13]}  Bb5 {[%clk 0:02:20]} 12. a4 {[%clk 0:01:58]}  Bxe2 {[%clk 0:02:17]} 13. Nxe2 {[%clk 0:01:59]}  c5 {[%clk 0:02:06]} 14. c3 {[%clk 0:01:34]}  cxd4 {[%clk 0:02:05]} 15. cxd4 {[%clk 0:01:35]}  Qh4 {[%clk 0:01:54]} 16. a5 {[%clk 0:01:29]}  Bxd4 {[%clk 0:01:30]} 17. Ra4 {[%clk 0:01:26]}  Bxf2+ {[%clk 0:01:08]} 18. Rxf2 {[%clk 0:01:26]}  Qe7 {[%clk 0:01:05]} 19. b3 {[%clk 0:01:19]}  Rc8 {[%clk 0:01:02]} 20. Ba3 {[%clk 0:01:14]}  Qg5 {[%clk 0:01:02]} 21. Raf4 {[%clk 0:01:08]}  f6 {[%clk 0:00:57]} 22. Rxf5 {[%clk 0:01:03]}  exf5 {[%clk 0:00:56]} 23. Qxd5 {[%clk 0:01:03]}  Rc6 {[%clk 0:00:46]} 24. e6 {[%clk 0:00:59]}  Rc7 {[%clk 0:00:37]} 25. Qd6 {[%clk 0:00:56]} 1-0


[Site "https://www.chess.com"]

[Event "Titled Tuesday Blitz April 19 Early 2022"]
[White "Demin, Vladimir"]
[Black "Alinasab, Mobina"]
[WhiteFideId "4167457"]
[BlackFideId "12528897"]
[WhiteElo "2388"]
[BlackElo "2031"]
[Result "0-1"]
[Round "11"]
[TimeControl "180+1"]
[Date "2022.04.19"]
[WhiteClock "0:00:01"]
[BlackClock "0:00:01"]

1. d4 {[%clk 0:03:00]}  Nf6 {[%clk 0:02:47]} 2. g4 {[%clk 0:03:00]}  Nxg4 {[%clk 0:02:46]} 3. e4 {[%clk 0:02:59]}  Nf6 {[%clk 0:02:46]} 4. e5 {[%clk 0:02:59]}  Ng8 {[%clk 0:02:45]} 5. c4 {[%clk 0:02:55]}  d6 {[%clk 0:02:43]} 6. exd6 {[%clk 0:02:55]}  exd6 {[%clk 0:02:39]} 7. Nc3 {[%clk 0:02:56]}  Nf6 {[%clk 0:02:37]} 8. Be3 {[%clk 0:02:52]}  Be7 {[%clk 0:02:37]} 9. Nf3 {[%clk 0:02:50]}  Bg4 {[%clk 0:02:35]} 10. Rg1 {[%clk 0:02:48]}  h5 {[%clk 0:02:30]} 11. h3 {[%clk 0:02:47]}  Bxf3 {[%clk 0:02:28]} 12. Qxf3 {[%clk 0:02:48]}  g6 {[%clk 0:02:29]} 13. Bd3 {[%clk 0:02:46]}  c6 {[%clk 0:02:26]} 14. O-O-O {[%clk 0:02:39]}  d5 {[%clk 0:02:22]} 15. Bf4 {[%clk 0:02:34]}  Nbd7 {[%clk 0:02:20]} 16. Kb1 {[%clk 0:02:27]}  dxc4 {[%clk 0:02:13]} 17. Bxc4 {[%clk 0:02:27]}  Nb6 {[%clk 0:02:14]} 18. Bb3 {[%clk 0:02:16]}  Nbd5 {[%clk 0:02:13]} 19. Be5 {[%clk 0:02:13]}  Rg8 {[%clk 0:01:54]} 20. Rde1 {[%clk 0:02:06]}  Kf8 {[%clk 0:01:51]} 21. Ne4 {[%clk 0:01:33]}  Nxe4 {[%clk 0:01:32]} 22. Rxe4 {[%clk 0:01:34]}  Bf6 {[%clk 0:01:28]} 23. Rf4 {[%clk 0:01:23]}  Nxf4 {[%clk 0:01:20]} 24. Qxf4 {[%clk 0:01:22]}  Kg7 {[%clk 0:01:19]} 25. Rg5 {[%clk 0:00:34]}  Bxe5 {[%clk 0:01:00]} 26. Qxf7+ {[%clk 0:00:28]}  Kh6 {[%clk 0:00:50]} 27. Rxe5 {[%clk 0:00:26]}  Qxd4 {[%clk 0:00:49]} 28. Qf6 {[%clk 0:00:07]}  Qd3+ {[%clk 0:00:43]} 29. Kc1 {[%clk 0:00:05]}  Raf8 {[%clk 0:00:02]} 30. Qg5+ {[%clk 0:00:03]}  Kh7 {[%clk 0:00:02]} 31. Bxg8+ {[%clk 0:00:02]}  Kxg8 {[%clk 0:00:02]} 32. Re3 {[%clk 0:00:01]}  Qc4+ {[%clk 0:00:01]} 0-1


[Site "https://www.chess.com"]

[Event "Titled Tuesday Blitz April 19 Early 2022"]
[White "Dushyant Sharma"]
[Black "Mohammadian, Mohammad"]
[WhiteFideId "25065130"]
[BlackFideId "12566055"]
[WhiteElo "2105"]
[BlackElo "1544"]
[Result "1-0"]
[Round "11"]
[TimeControl "180+1"]
[Date "2022.04.19"]
[WhiteClock "0:02:34"]
[BlackClock "0:01:47"]

1. e4 {[%clk 0:03:00]}  e5 {[%clk 0:02:57]} 2. Nf3 {[%clk 0:03:00]}  Nc6 {[%clk 0:02:54]} 3. Nc3 {[%clk 0:03:00]}  Nf6 {[%clk 0:02:50]} 4. Bb5 {[%clk 0:03:01]}  d6 {[%clk 0:02:49]} 5. d4 {[%clk 0:03:00]}  exd4 {[%clk 0:02:48]} 6. Nxd4 {[%clk 0:03:01]}  Bd7 {[%clk 0:02:48]} 7. Nxc6 {[%clk 0:03:02]}  Bxc6 {[%clk 0:02:48]} 8. Bd3 {[%clk 0:03:03]}  Be7 {[%clk 0:02:39]} 9. O-O {[%clk 0:03:03]}  O-O {[%clk 0:02:39]} 10. f4 {[%clk 0:03:02]}  Qd7 {[%clk 0:02:37]} 11. Kh1 {[%clk 0:03:01]}  Qg4 {[%clk 0:02:34]} 12. Rf3 {[%clk 0:02:56]}  d5 {[%clk 0:02:26]} 13. e5 {[%clk 0:02:46]}  d4 {[%clk 0:02:23]} 14. exf6 {[%clk 0:02:42]}  Bxf3 {[%clk 0:02:19]} 15. gxf3 {[%clk 0:02:41]}  Qe6 {[%clk 0:02:05]} 16. fxe7 {[%clk 0:02:40]}  Qxe7 {[%clk 0:02:04]} 17. Ne4 {[%clk 0:02:36]}  Rfe8 {[%clk 0:02:02]} 18. Bd2 {[%clk 0:02:36]}  Rad8 {[%clk 0:02:00]} 19. Qg1 {[%clk 0:02:35]}  f5 {[%clk 0:01:57]} 20. Ng5 {[%clk 0:02:35]}  Qf6 {[%clk 0:01:55]} 21. Bc4+ {[%clk 0:02:35]}  Kf8 {[%clk 0:01:51]} 22. Nxh7+ {[%clk 0:02:35]}  Ke7 {[%clk 0:01:48]} 23. Nxf6 {[%clk 0:02:36]}  Kxf6 {[%clk 0:01:47]} 24. Qg5# {[%clk 0:02:34]} 1-0


[Site "https://www.chess.com"]

[Event "Titled Tuesday Blitz April 19 Early 2022"]
[White "Dwilewicz, Katarzyna"]
[Black "Namitbir Singh Walia"]
[WhiteFideId "1148486"]
[BlackFideId "35071068"]
[WhiteElo "1907"]
[BlackElo "1565"]
[Result "1-0"]
[Round "11"]
[TimeControl "180+1"]
[Date "2022.04.19"]
[WhiteClock "0:00:02"]
[BlackClock "0:00:14"]

1. e4 {[%clk 0:03:00]}  c5 {[%clk 0:02:59]} 2. Nf3 {[%clk 0:03:01]}  Nc6 {[%clk 0:03:00]} 3. d4 {[%clk 0:03:00]}  cxd4 {[%clk 0:03:01]} 4. Nxd4 {[%clk 0:03:01]}  g6 {[%clk 0:03:01]} 5. c4 {[%clk 0:02:59]}  Nf6 {[%clk 0:03:00]} 6. Nc3 {[%clk 0:02:59]}  Nxd4 {[%clk 0:03:00]} 7. Qxd4 {[%clk 0:02:57]}  d6 {[%clk 0:03:00]} 8. Be2 {[%clk 0:02:37]}  Bg7 {[%clk 0:02:58]} 9. Be3 {[%clk 0:02:35]}  O-O {[%clk 0:02:57]} 10. Qd2 {[%clk 0:02:33]}  Be6 {[%clk 0:02:55]} 11. O-O {[%clk 0:02:26]}  Qa5 {[%clk 0:02:54]} 12. b3 {[%clk 0:02:21]}  Rfc8 {[%clk 0:02:53]} 13. Rac1 {[%clk 0:02:21]}  a6 {[%clk 0:02:36]} 14. Rfd1 {[%clk 0:02:20]}  b5 {[%clk 0:02:28]} 15. Nd5 {[%clk 0:01:41]}  Qxd2 {[%clk 0:02:08]} 16. Bxd2 {[%clk 0:01:36]}  Bxd5 {[%clk 0:01:56]} 17. exd5 {[%clk 0:01:34]}  bxc4 {[%clk 0:01:55]} 18. bxc4 {[%clk 0:01:32]}  Nd7 {[%clk 0:01:54]} 19. Rb1 {[%clk 0:01:25]}  Rab8 {[%clk 0:01:53]} 20. Be3 {[%clk 0:01:15]}  Bc3 {[%clk 0:01:38]} 21. Rdc1 {[%clk 0:01:09]}  Rxb1 {[%clk 0:01:34]} 22. Rxb1 {[%clk 0:01:10]}  Rb8 {[%clk 0:01:35]} 23. Rxb8+ {[%clk 0:01:07]}  Nxb8 {[%clk 0:01:35]} 24. Kf1 {[%clk 0:00:57]}  Bb4 {[%clk 0:01:35]} 25. Bd3 {[%clk 0:00:52]}  Nd7 {[%clk 0:01:35]} 26. f4 {[%clk 0:00:49]}  Bc5 {[%clk 0:01:35]} 27. Bd2 {[%clk 0:00:46]}  e6 {[%clk 0:01:29]} 28. dxe6 {[%clk 0:00:45]}  fxe6 {[%clk 0:01:30]} 29. Ke2 {[%clk 0:00:45]}  Kf7 {[%clk 0:01:29]} 30. Bc3 {[%clk 0:00:36]}  e5 {[%clk 0:01:25]} 31. fxe5 {[%clk 0:00:30]}  dxe5 {[%clk 0:01:26]} 32. Be4 {[%clk 0:00:29]}  Ke6 {[%clk 0:01:23]} 33. Bd5+ {[%clk 0:00:26]}  Kd6 {[%clk 0:01:23]} 34. Kd3 {[%clk 0:00:21]}  Nf6 {[%clk 0:01:14]} 35. Bb7 {[%clk 0:00:21]}  Ng4 {[%clk 0:01:12]} 36. h3 {[%clk 0:00:21]}  Nf2+ {[%clk 0:01:12]} 37. Ke2 {[%clk 0:00:22]}  e4 {[%clk 0:00:58]} 38. Bxa6 {[%clk 0:00:22]}  Nd3 {[%clk 0:00:58]} 39. Bb7 {[%clk 0:00:20]}  Nc1+ {[%clk 0:00:55]} 40. Kd1 {[%clk 0:00:18]}  Nxa2 {[%clk 0:00:55]} 41. Bg7 {[%clk 0:00:16]}  e3 {[%clk 0:00:42]} 42. Bf8+ {[%clk 0:00:15]}  Kc7 {[%clk 0:00:42]} 43. Bxc5 {[%clk 0:00:16]}  Kxb7 {[%clk 0:00:42]} 44. Bxe3 {[%clk 0:00:16]}  Kc6 {[%clk 0:00:41]} 45. Bd4 {[%clk 0:00:14]}  Nb4 {[%clk 0:00:41]} 46. Ke2 {[%clk 0:00:14]}  Nc2 {[%clk 0:00:41]} 47. Kd3 {[%clk 0:00:12]}  Nb4+ {[%clk 0:00:40]} 48. Ke4 {[%clk 0:00:12]}  Kd6 {[%clk 0:00:37]} 49. g4 {[%clk 0:00:12]}  Ke6 {[%clk 0:00:35]} 50. h4 {[%clk 0:00:11]}  Nc6 {[%clk 0:00:35]} 51. c5 {[%clk 0:00:11]}  Nb4 {[%clk 0:00:32]} 52. Bc3 {[%clk 0:00:11]}  Nc6 {[%clk 0:00:32]} 53. Bb2 {[%clk 0:00:08]}  Nb4 {[%clk 0:00:32]} 54. Bd4 {[%clk 0:00:08]}  Nc6 {[%clk 0:00:32]} 55. Be3 {[%clk 0:00:07]}  Ne5 {[%clk 0:00:31]} 56. Kf4 {[%clk 0:00:07]}  Nf7 {[%clk 0:00:17]} 57. Bd4 {[%clk 0:00:05]}  h6 {[%clk 0:00:16]} 58. Bg7 {[%clk 0:00:05]}  g5+ {[%clk 0:00:15]} 59. hxg5 {[%clk 0:00:03]}  hxg5+ {[%clk 0:00:16]} 60. Ke4 {[%clk 0:00:04]}  Nd8 {[%clk 0:00:16]} 61. Bh6 {[%clk 0:00:03]}  Kf6 {[%clk 0:00:17]} 62. Bf8 {[%clk 0:00:03]}  Ne6 {[%clk 0:00:16]} 63. Bd6 {[%clk 0:00:03]}  Nd8 {[%clk 0:00:15]} 64. Bc7 {[%clk 0:00:03]}  Ne6 {[%clk 0:00:14]} 65. Be5+ {[%clk 0:00:04]}  Ke7 {[%clk 0:00:13]} 66. Kf5 {[%clk 0:00:04]}  Kd7 {[%clk 0:00:13]} 67. Bd6 {[%clk 0:00:03]}  Nd4+ {[%clk 0:00:13]} 68. Kxg5 {[%clk 0:00:03]}  Ke6 {[%clk 0:00:13]} 69. Kh4 {[%clk 0:00:03]}  Nf3+ {[%clk 0:00:13]} 70. Kh5 {[%clk 0:00:03]}  Nd4 {[%clk 0:00:13]} 71. g5 {[%clk 0:00:04]}  Nf5 {[%clk 0:00:13]} 72. g6 {[%clk 0:00:04]}  Kf6 {[%clk 0:00:13]} 73. Be5+ {[%clk 0:00:03]}  Kxe5 {[%clk 0:00:13]} 74. Kg5 {[%clk 0:00:03]}  Ng7 {[%clk 0:00:13]} 75. Kh6 {[%clk 0:00:03]}  Ne6 {[%clk 0:00:13]} 76. Kh7 {[%clk 0:00:03]}  Nf8+ {[%clk 0:00:12]} 77. Kg7 {[%clk 0:00:03]}  Nxg6 {[%clk 0:00:12]} 78. Kxg6 {[%clk 0:00:03]}  Kd5 {[%clk 0:00:13]} 79. c6 {[%clk 0:00:02]}  Kc5 {[%clk 0:00:14]} 80. c7 {[%clk 0:00:02]} 1-0


[Site "https://www.chess.com"]